bitfinex-derivatives/quotes_ETHF0:USTF0_20220106
["timestamp","ask_amount","ask_price","bid_price","bid_amount"]
[1641430503475,0.132394,3536.2,3536.1,0.65906369]
[1641430503675,0.29197014,3536.2,3536.1,0.65906369]
[1641430504078,0.29197014,3536.2,3535.9,1.40294717]
[1641430504478,0.29197014,3536.2,3535.4,2.86122753]
[1641430504479,0.15957614,3536.1,3535.4,2.86122753]
[1641430504676,0.75748337,3536.3,3535.4,2.86122753]
[1641430504877,1.41380524,3536.1,3535.4,2.86122753]
[1641430505076,0.132394,3536.0,3535.4,2.86122753]
[1641430505276,2.137184,3536.0,3535.4,2.86122753]
[1641430506076,0.14205449,3535.9,3535.4,2.86122753]
[1641430506677,0.132394,3535.8,3535.4,2.86122753]
[1641430507476,2.00479,3536.0,3535.4,2.86122753]
[1641430507876,0.14205024,3535.9,3535.4,2.99362153]
[1641430508480,0.27444424,3535.9,3535.4,2.99362153]
[1641430508680,0.27444424,3535.9,3535.4,2.86122753]
[1641430509078,0.132394,3535.9,3535.4,2.86122753]
[1641430509779,1.137184,3536.0,3535.4,2.86122753]
[1641430510179,0.14205152,3535.9,3535.4,2.86122753]
[1641430510380,1.12768911,3536.0,3535.4,2.86122753]
[1641430510781,2.54150035,3536.0,3535.4,2.86122753]
[1641430510981,2.54150035,3536.0,3534.8,3.03209619]
[1641430511180,1.12768911,3536.0,3534.8,3.03209619]
[1641430511380,0.1264334,3535.9,3534.8,3.03209619]
[1641430514685,1.12768911,3536.0,3535.9,0.8735666]
[1641430516287,1.24019032,3536.0,3535.9,0.8735666]
[1641430518889,1.24019032,3536.0,3535.9,0.26022257]
[1641430519390,1.12768911,3536.0,3535.9,0.26022257]
[1641430519789,0.95062766,3536.3,3535.9,0.26022257]
[1641430519989,1.79897777,3536.3,3535.9,0.26022257]
[1641430520190,0.11249587,3536.2,3535.9,0.26022257]
[1641430520391,0.11249587,3536.2,3536.0,0.229991]
[1641430520794,0.95062766,3536.3,3535.9,0.39261657]
[1641430520993,1.26912943,3536.5,3535.9,0.39261657]
[1641430520994,0.95062766,3536.5,3535.9,0.39261657]
[1641430521391,0.11248903,3536.4,3535.9,0.39261657]
[1641430521990,0.11248903,3536.5,3535.9,0.39261657]
[1641430522393,0.11248903,3536.3,3535.9,0.39261657]
[1641430522594,0.11248903,3536.4,3535.9,0.39261657]
[1641430522793,2.95541766,3536.6,3535.9,0.39261657]
[1641430522993,2.85306794,3536.6,3535.9,0.39261657]
[1641430523195,2.37662814,3536.1,3535.9,0.39261657]
[1641430523396,2.37662814,3536.1,3536.0,0.229991]
[1641430523794,2.37662814,3536.1,3535.9,0.39261657]
[1641430524194,3.22502175,3536.1,3535.9,0.26022257]
[1641430524594,1.91806805,3536.0,3535.9,0.26022257]
[1641430524995,2.03056891,3536.0,3535.9,0.26022257]
[1641430525196,1.91806805,3536.0,3535.9,0.26022257]
[1641430525599,0.84839361,3536.1,3535.9,0.26022257]
[1641430525797,2.79223611,3536.0,3535.9,0.26022257]
[1641430526699,2.9047387,3536.0,3535.9,0.26022257]
[1641430526998,0.52811056,3536.0,3535.9,0.26022257]
[1641430527400,2.02811056,3536.0,3535.9,0.26022257]
[1641430527600,2.02811056,3536.0,3535.9,1e-08]
[1641430527797,0.8485408,3535.5,3535.3,0.92996921]
[1641430527998,0.8485408,3535.5,3535.3,1.15996021]
[1641430528198,1.41393718,3535.7,3535.3,0.92996921]
[1641430528601,1.41393718,3535.7,3535.1,1.30266375]
[1641430528602,0.11251924,3535.6,3535.1,1.30266375]
[1641430529398,1.41393718,3535.7,3535.1,1.30266375]
[1641430529800,0.11252123,3535.6,3535.1,1.30266375]
[1641430530202,0.41560797,3535.5,3535.1,1.30266375]
[1641430530400,1.9182835,3535.3,3535.1,1.30266375]
[1641430530600,1.9182835,3535.3,3535.1,1.53265475]
[1641430531303,1.27494918,3535.2,3535.1,1.53265475]
[1641430531903,1.27494918,3535.2,3535.1,2.62428059]
[1641430532300,1.27494918,3535.2,3535.1,1.66504875]
[1641430532701,0.9561213,3535.3,3535.1,1.66504875]
[1641430533402,0.9561213,3535.3,3535.2,2.00479]
[1641430534102,0.9561213,3535.3,3535.2,2.96400558]
[1641430534303,3.13317936,3536.1,3535.2,2.96400558]
[1641430534503,3.13317936,3536.1,3535.3,1.632394]
[1641430534701,3.13317936,3536.1,3535.6,1.5]
[1641430534903,2.71757139,3536.1,3535.7,0.132394]
[1641430535102,2.71757139,3536.1,3535.7,1.09830552]
[1641430535304,0.79928789,3536.1,3535.7,1.09830552]
[1641430535503,0.79928789,3536.1,3536.0,2.00479]
[1641430535703,0.79928789,3536.1,3536.0,2.234781]
[1641430535904,0.79928789,3536.1,3536.0,2.367175]
[1641430536604,1.2271548,3536.1,3536.0,2.137184]
[1641430536806,0.42786691,3536.1,3536.0,2.367175]
[1641430538005,0.42786691,3536.5,3536.0,2.367175]
[1641430538504,0.42786691,3536.5,3536.0,2.00479]
[1641430538706,0.11248501,3536.4,3536.0,2.00479]
[1641430539505,1.5,3536.2,3536.0,2.00479]
[1641430540007,0.11248501,3536.1,3535.8,2.00479]
[1641430540605,1.61248501,3536.2,3535.8,2.00479]
[1641430541008,0.11248501,3536.1,3535.8,2.00479]
[1641430541406,0.42786691,3536.0,3535.8,2.00479]
[1641430542007,0.42786691,3536.0,3535.1,2.00479]
[1641430542407,0.42786691,3536.0,3535.2,0.95922609]
[1641430542710,3.84615041,3536.2,3535.2,0.95922609]
[1641430543008,0.11250816,3535.9,3535.1,2.00479]
[1641430543208,0.11250816,3536.1,3535.1,2.00479]
[1641430543409,2.00479,3535.9,3535.2,0.95925256]
[1641430543609,2.85323207,3535.9,3535.2,0.95925256]
[1641430544210,4.33167788,3535.9,3535.2,0.95925256]
[1641430544409,3.48323581,3535.9,3535.2,0.95925256]
[1641430545210,0.42786691,3535.8,3535.2,0.95925256]
[1641430546011,0.42786691,3535.8,3535.2,2.09377005]
[1641430546415,0.42786691,3535.8,3535.2,1.13451749]
[1641430547114,0.42786691,3535.8,3535.3,0.95925237]
[1641430548215,4.97214739,3535.7,3535.3,0.95925237]
[1641430548415,4.97214739,3535.7,3535.2,1.13451749]
[1641430549115,4.97214739,3535.7,3535.3,0.95926506]
[1641430549716,0.42786691,3535.6,3535.3,0.95926506]
[1641430551020,1.70268993,3535.6,3535.3,0.95926506]
[1641430553220,5.65726824,3535.3,3534.5,1.2487125]
[1641430553420,8.20340478,3535.1,3534.5,1.2487125]
[1641430553719,3.59592643,3534.5,3534.1,1.5348309]
[1641430553919,2.00479,3534.8,3534.4,1.08488857]
[1641430555723,2.00479,3534.8,3534.1,1.5348309]
[1641430555923,4.00958,3534.8,3534.1,1.5348309]
[1641430556523,4.00958,3534.8,3534.0,2.00479]
[1641430556524,0.42786691,3534.7,3534.0,2.00479]
[1641430557425,0.42786691,3534.7,3534.1,0.132394]
[1641430557724,0.42786691,3534.7,3534.2,0.93812723]
[1641430557924,1.9182835,3534.6,3534.2,0.93812723]
[1641430558124,1.9182835,3534.6,3534.3,0.132394]
[1641430558325,1.9182835,3534.6,3534.4,1.19239282]
[1641430558525,1.9182835,3534.6,3534.4,0.96240182]
[1641430558924,0.9182835,3534.6,3534.5,0.132394]
[1641430559125,0.9182835,3534.6,3534.5,1.30051223]
[1641430559328,0.42786691,3534.7,3534.5,1.30051223]
[1641430560125,0.42786691,3534.7,3534.6,0.229991]
[1641430560324,0.42786691,3534.7,3534.5,1.07052123]
[1641430560525,0.42786691,3534.7,3534.5,0.132394]
[1641430561126,0.42786691,3534.7,3534.5,0.362385]
[1641430561927,0.42786691,3534.7,3534.5,0.132394]
[1641430563029,0.42786691,3534.7,3534.4,0.96240182]
[1641430563832,4.00958,3534.8,3534.7,0.36673309]
[1641430564434,4.00958,3534.8,3534.7,0.59672409]
[1641430564633,4.00958,3534.8,3534.7,0.36673309]
[1641430566236,4.00958,3534.8,3534.7,0.59672409]
[1641430566536,2.39785438,3535.5,3534.7,0.72911809]
[1641430566938,2.51038297,3535.4,3534.7,0.72911809]
[1641430567236,2.39785438,3535.4,3534.7,0.72911809]
[1641430567936,2.39785438,3535.4,3535.0,2.00479]
[1641430568135,2.39785438,3535.4,3535.1,0.132394]
[1641430568337,7.57161603,3535.5,3535.2,0.229991]
[1641430568536,7.57161603,3535.5,3535.3,0.132394]
[1641430569138,7.57161603,3535.5,3535.4,0.229991]
[1641430569739,5.6569502,3535.5,3535.4,0.229991]
[1641430569939,1.91466583,3535.6,3535.4,0.229991]
[1641430569940,1.91466583,3535.6,3535.4,2.234781]
[1641430570139,1.91466583,3535.6,3535.5,0.132394]
[1641430570540,1.91466583,3535.6,3535.5,0.49912709]
[1641430571340,0.79943214,3535.8,3535.5,0.49912709]
[1641430571539,0.79943214,3535.8,3535.6,0.229991]
[1641430571940,0.79943214,3535.8,3535.7,2.137184]
[1641430572741,1.91466583,3536.3,3535.7,2.137184]
[1641430572941,1.91466583,3536.3,3536.2,1.5]
[1641430573141,1.91466583,3536.3,3536.2,1.862385]
[1641430573541,5.76165737,3536.9,3536.2,15.01130542]
[1641430573743,3.99256177,3537.1,3536.8,1.5]
[1641430573940,4.3929894,3537.4,3536.6,1.4127686]
[1641430573941,4.3929894,3537.4,3537.0,17.69958]
[1641430574143,4.3929894,3537.4,3537.3,1.5]
[1641430574341,1.76482703,3537.5,3537.3,13.69]
[1641430574541,3.98747326,3537.7,3537.4,13.69]
[1641430574743,3.98747326,3537.7,3537.6,1.5]
[1641430574942,4.79235208,3538.5,3537.6,14.052385]
[1641430575142,4.79235208,3538.5,3538.3,1.5]
[1641430575343,0.11239615,3538.4,3538.3,1.5]
[1641430575541,4.79235208,3538.5,3538.3,1.5]
[1641430575542,4.79235208,3538.5,3538.3,1.632394]
[1641430575742,4.79235208,3538.5,3538.4,1.5551087]
[1641430576043,4.79235208,3538.5,3538.4,5.5646887]
[1641430576844,0.11238795,3538.5,3538.4,5.5646887]
[1641430577247,0.11238795,3539.1,3538.4,5.5646887]
[1641430577443,0.11238795,3538.5,3538.4,5.5646887]
[1641430577643,0.11238795,3539.0,3538.4,5.3346977]
[1641430578045,0.11238795,3539.1,3538.9,2.00479]
[1641430578245,2.90606272,3539.2,3538.9,2.00479]
[1641430578845,1.5,3539.4,3538.9,2.00479]
[1641430579045,1.5,3539.4,3538.9,0.08787962]
[1641430579647,1.5,3539.6,3538.9,0.08787962]
[1641430580449,4.00958,3539.7,3538.9,0.08787962]
[1641430581051,3.98570225,3539.6,3538.9,0.08787962]
[1641430581651,5.48570225,3539.6,3538.9,0.08787962]
[1641430581851,5.28030225,3539.6,3538.9,0.08787962]
[1641430582151,3.78030225,3539.6,3538.9,0.08787962]
[1641430582354,4.00958,3539.7,3538.9,0.08787962]
[1641430582551,4.00958,3539.7,3539.0,1.0033462]
[1641430582750,4.00958,3539.7,3539.0,2.6357402]
[1641430583154,4.00958,3539.7,3539.0,1.1357402]
[1641430584153,0.19296886,3539.6,3539.0,1.1357402]
[1641430584552,0.19296886,3539.6,3539.0,13.3257402]
[1641430585154,2.00479,3539.7,3539.0,13.3257402]
[1641430585352,2.00479,3539.7,3539.2,12.19]
[1641430585755,2.00479,3539.7,3539.3,0.132394]
[1641430588456,2.00479,3539.7,3539.0,1.0033462]
[1641430589357,2.00479,3539.7,3539.0,1.1357402]
[1641430593259,0.11236109,3539.6,3539.0,1.1357402]
[1641430596061,0.11236109,3539.6,3539.0,1.0033462]
[1641430596261,0.11236109,3539.6,3539.1,0.132394]
[1641430600363,2.00479,3539.7,3539.6,2.254372]
[1641430600762,2.11713418,3539.7,3539.6,2.254372]
[1641430603466,2.11713418,3539.7,3539.6,2.484363]
[1641430604067,0.11234418,3539.7,3539.6,3.7195126]
[1641430604269,0.11234418,3539.7,3539.6,5.7243026]
[1641430604467,0.11234418,3540.2,3539.6,5.7243026]
[1641430604670,0.11234418,3539.7,3539.6,17.9143026]
[1641430604867,5.467,3540.7,3539.7,0.002]
[1641430605067,5.467,3540.7,3540.4,12.19]
[1641430605268,5.467,3540.7,3540.5,0.362385]
[1641430605771,29.8001,3541.8,3540.5,0.362385]
[1641430605969,29.8001,3541.8,3540.6,1.11898234]
[1641430606369,29.8001,3541.8,3541.1,2.00479]
[1641430606569,4.33019367,3541.9,3541.2,0.132394]
[1641430607068,4.33019367,3541.9,3541.2,1.1162819]
[1641430607873,4.32819367,3541.9,3541.2,1.1162819]
[1641430608273,2.00479,3541.5,3541.2,1.1162819]
[1641430608470,2.00479,3541.5,3541.3,0.229991]
[1641430609270,2.00479,3541.5,3541.4,0.132394]
[1641430609871,3.42279,3541.5,3541.4,0.132394]
[1641430612679,3.42279,3541.5,3541.2,0.9838879]
[1641430612878,4.92279,3541.5,3541.0,0.132394]
[1641430613079,3.42279,3541.5,3539.9,1.5]
[1641430613980,3.42279,3541.5,3540.5,0.80562559]
[1641430615580,4.92279,3541.5,3540.5,0.80562559]
[1641430615982,3.42279,3541.5,3540.5,0.80562559]
[1641430616784,4.8344079,3541.5,3540.5,0.80562559]
[1641430617883,1.5,3541.4,3540.5,0.80562559]
[1641430618083,0.84719637,3541.1,3540.0,2.00479]
[1641430618283,2.00479,3540.8,3540.0,2.00479]
[1641430619085,2.00479,3540.8,3540.1,1.07197607]
[1641430619885,0.08761671,3540.7,3540.1,1.07197607]
[1641430621184,0.08761671,3540.7,3540.2,0.132394]
[1641430622187,0.08761671,3540.7,3540.1,1.07197607]
[1641430622385,2.00479,3540.3,3540.1,1.07197607]
[1641430622586,2.00479,3540.3,3540.1,1.30196707]
[1641430622787,2.00479,3540.3,3540.1,1.07197607]
[1641430622987,0.08761671,3540.2,3540.1,1.07197607]
[1641430623389,0.08761671,3540.2,3539.6,4.259162]
[1641430623590,1.58761671,3540.2,3539.6,4.259162]
[1641430623886,0.08761671,3540.1,3539.6,4.259162]
[1641430624288,2.91244534,3539.7,3538.1,0.93812723]
[1641430624490,1.5,3538.9,3538.1,0.09012723]
[1641430624890,0.8478051,3538.6,3537.8,0.09012723]
[1641430625288,0.08761671,3538.5,3537.8,0.09012723]
[1641430625488,0.08761671,3538.5,3537.9,0.132394]
[1641430626490,2.00479,3538.1,3537.9,0.132394]
[1641430627091,2.00479,3538.1,3538.0,0.229991]
[1641430627293,2.00479,3538.1,3537.9,0.132394]
[1641430628294,2.00479,3538.1,3538.0,1.49984696]
[1641430628693,2.00479,3538.5,3538.0,1.49984696]
[1641430628898,31.63845755,3539.2,3538.1,0.132394]
[1641430629095,31.86008988,3539.8,3538.1,0.132394]
[1641430629294,1.41252913,3539.3,3538.1,0.132394]
[1641430629893,0.08766446,3539.2,3538.1,0.132394]
[1641430630494,2.00479,3538.9,3538.1,2.137184]
[1641430636999,0.08766344,3538.8,3538.1,2.137184]
[1641430637800,1.58766344,3538.8,3538.1,2.137184]
[1641430638001,1.58766344,3538.8,3538.1,0.132394]
[1641430638401,2.00479,3538.2,3538.1,0.132394]
[1641430638600,2.00479,3538.2,3538.0,1.26985596]
[1641430639701,3.50479,3538.2,3538.0,1.26985596]
[1641430639901,3.50479,3538.2,3537.3,2.00479]
[1641430640203,3.50479,3538.2,3537.1,2.00479]
[1641430640204,0.08769976,3538.1,3537.1,2.00479]
[1641430640401,2.00479,3537.4,3536.6,3.25456078]
[1641430640602,2.00479,3537.4,3536.7,0.132394]
[1641430640806,2.00479,3537.4,3536.7,1.24215151]
[1641430641003,1.5,3537.3,3536.7,1.24215151]
[1641430641206,2.00479,3537.4,3536.7,1.24215151]
[1641430642204,0.08772806,3537.3,3536.7,1.24215151]
[1641430642403,2.00479,3536.8,3536.7,1.24215151]
[1641430642604,2.00479,3536.8,3536.7,1.47214251]
[1641430642805,2.86356692,3538.2,3536.7,1.47214251]
[1641430643005,1.25868988,3538.3,3536.7,1.47214251]
[1641430643205,0.08770727,3538.0,3536.7,13.66214251]
[1641430643505,0.08770727,3538.0,3536.7,1.47214251]
[1641430643705,1.50074537,3538.0,3536.7,1.47214251]
[1641430643906,0.08770727,3538.0,3536.7,1.47214251]
[1641430644108,0.08770727,3537.9,3536.7,1.47214251]
[1641430644506,2.00479,3537.5,3536.7,3.47693251]
[1641430647209,2.00479,3537.9,3536.7,3.47693251]
[1641430648411,2.00479,3537.9,3537.2,2.00479]
[1641430648610,2.00479,3537.9,3537.2,3.10215205]
[1641430649009,2.00479,3537.9,3537.2,3.23454605]
[1641430652214,0.08769593,3537.8,3537.2,3.23454605]
[1641430652916,2.00479,3537.9,3537.2,3.23454605]
[1641430659327,2.00479,3538.4,3537.4,1.5]
[1641430659526,2.00479,3538.4,3537.2,15.42454605]
[1641430659527,2.00479,3538.4,3537.2,15.29215205]
[1641430659726,2.00479,3538.4,3537.7,1.5]
[1641430659925,2.00479,3538.4,3537.8,0.132394]
[1641430660129,2.00479,3538.4,3537.9,1.35050418]
[1641430660525,2.00479,3538.4,3538.0,0.132394]
[1641430662127,1.41263489,3539.0,3538.0,0.132394]
[1641430662525,0.08765581,3538.9,3538.0,0.132394]
[1641430663526,2.00479,3539.1,3538.0,0.132394]
[1641430664527,2.00479,3539.1,3538.3,2.00479]
[1641430664732,2.00479,3539.1,3538.4,0.132394]
[1641430664929,2.00479,3539.1,3538.5,1.2761109]
[1641430665329,2.00479,3539.1,3538.6,0.132394]
[1641430666529,0.08765116,3539.0,3538.6,0.132394]
[1641430666931,0.08765116,3539.0,3538.9,1.0]
[1641430667633,1.36516991,3538.8,3537.5,1.41243337]
[1641430667833,1.36516991,3538.8,3537.1,2.34482827]
[1641430667834,1.5,3538.6,3537.9,0.73296167]
[1641430668034,0.8479048,3538.2,3537.1,0.9323949]
[1641430668635,0.08768996,3538.1,3537.4,2.00479]
[1641430668836,0.08768996,3538.1,3537.5,0.132394]
[1641430669737,0.08768996,3538.1,3537.6,0.94020021]
[1641430669936,0.84794361,3538.0,3537.6,0.94020021]
[1641430671036,0.84794361,3538.0,3537.0,2.00479]
[1641430671037,0.08769706,3537.9,3537.0,3.15646393]
[1641430671243,0.08769706,3537.9,3536.3,0.9323949]
[1641430671244,1.37721441,3537.3,3536.3,0.9323949]
[1641430672038,0.08772797,3537.2,3536.1,1.27653849]
[1641430672239,0.08772797,3537.2,3536.9,1.24977078]
[1641430672638,2.00479,3537.0,3536.9,1.24977078]
[1641430673039,2.00479,3537.1,3536.9,1.24977078]
[1641430673839,2.394156,3537.1,3536.9,1.24977078]
[1641430674039,2.394156,3537.1,3536.3,1.24977078]
[1641430674240,2.394156,3537.1,3536.4,0.132394]
[1641430674440,0.389366,3537.1,3536.4,0.132394]
[1641430674640,0.389366,3537.1,3536.8,2.00479]
[1641430674843,0.389366,3537.1,3536.9,0.229991]
[1641430675242,1.8880495,3537.5,3536.8,2.137184]
[1641430675243,1.66533678,3537.0,3536.8,2.137184]
[1641430675839,1.66533678,3537.0,3536.8,2.367175]
[1641430676040,1.66533678,3537.0,3536.8,2.137184]
[1641430676441,1.27597078,3536.9,3536.8,2.137184]
[1641430676641,1.27597078,3536.9,3536.8,2.367175]
[1641430677140,0.27597078,3536.9,3536.8,2.367175]
[1641430677340,0.389366,3536.9,3536.8,2.367175]
[1641430677741,0.389366,3536.9,3536.8,2.137184]
[1641430678543,0.389366,3536.9,3536.8,2.367175]
[1641430678944,1.53720683,3537.2,3536.8,2.367175]
[1641430678945,0.389366,3537.1,3536.8,2.367175]
[1641430680449,0.389366,3537.1,3536.8,2.137184]
[1641430681149,0.389366,3537.1,3536.8,2.00479]
[1641430681348,0.287294,3536.7,3536.6,0.90632238]
[1641430681647,0.389366,3537.1,3536.6,0.90632238]
[1641430682047,0.389366,3537.1,3536.9,1.0]
[1641430682848,2.00479,3537.0,3536.9,1.0]
[1641430684651,12.19,3536.9,3536.0,2.42187336]
[1641430684851,2.00479,3536.4,3536.0,1.5348309]
[1641430686352,0.389366,3536.3,3536.0,1.5348309]
[1641430686652,0.389366,3536.3,3535.7,0.59925266]
[1641430686851,3.28654994,3536.1,3535.7,0.59925266]
[1641430687652,3.28654994,3536.1,3535.9,0.94579183]
[1641430689155,0.389366,3536.0,3535.9,0.94579183]
[1641430689454,0.389366,3536.0,3535.8,0.94579183]
[1641430689653,3.67605797,3536.0,3535.8,0.94579183]
[1641430690654,0.95720303,3535.9,3535.7,1.54504449]
[1641430691557,3.67605797,3536.0,3535.7,0.94579183]
[1641430691755,3.67605797,3536.0,3535.6,2.00479]
[1641430691756,1.66562974,3535.9,3535.6,2.95058183]
[1641430693659,0.03145912,3535.6,3535.3,1.26105578]
[1641430693858,0.03145912,3535.6,3535.4,0.94593127]
[1641430694059,1.27626374,3535.8,3535.4,0.94593127]
[1641430695058,4.00958,3535.5,3535.1,1.26105578]
[1641430695859,4.398946,3535.5,3535.2,0.59937606]
[1641430697061,0.389366,3535.4,3535.3,0.229991]
[1641430697261,0.389366,3535.4,3534.9,0.59937606]
[1641430697662,0.389366,3535.4,3535.0,0.132394]
[1641430698863,1.27626374,3535.3,3535.1,0.59937606]
[1641430699465,1.27626374,3535.3,3535.1,0.82936706]
[1641430699864,1.27626374,3535.3,3535.1,0.59937606]
[1641430700967,1.66562974,3535.4,3535.1,0.59937606]
[1641430702464,1.27626374,3535.3,3535.1,0.59937606]
[1641430703667,0.389366,3535.4,3535.1,0.59937606]
[1641430703668,1.66562974,3535.4,3535.1,0.59937606]
[1641430704669,3.05105734,3535.3,3535.1,0.59937606]
[1641430704866,3.05105734,3535.3,3535.0,1.5348309]
[1641430705067,4.32732108,3535.3,3535.0,1.5348309]
[1641430705867,0.53499668,3534.8,3534.7,1.87023324]
[1641430706068,12.72499668,3534.8,3534.6,1.08423324]
[1641430706269,16.35555999,3535.1,3534.6,1.08423324]
[1641430707068,2.00479,3534.7,3534.6,1.08423324]
[1641430707267,2.00479,3534.7,3534.1,4.49642551]
[1641430707669,2.00479,3534.7,3534.1,1.38200948]
[1641430711670,4.43113809,3534.3,3534.1,1.38200948]
[1641430713272,4.43113809,3534.3,3534.2,0.229991]
[1641430713474,4.16555999,3535.1,3534.2,0.229991]
[1641430713874,4.99998548,3535.7,3534.3,0.132394]
[1641430715072,2.00479,3535.2,3534.4,2.00479]
[1641430715480,2.00479,3535.2,3534.5,0.132394]
[1641430719079,2.85341876,3535.2,3534.5,0.132394]
[1641430719876,0.84869098,3534.9,3534.5,0.132394]
[1641430721078,2.00479,3534.6,3534.5,0.132394]
[1641430721882,2.00479,3534.6,3534.1,1.38200948]
[1641430722080,2.00479,3534.6,3534.2,0.132394]
[1641430726582,0.52972156,3534.5,3534.4,1.24184504]
[1641430726785,1.78392933,3534.5,3534.4,1.24184504]
[1641430727184,5.18439105,3534.5,3534.4,1.24184504]
[1641430727385,5.18439105,3534.5,3534.4,1.47183604]
[1641430727584,5.18439105,3534.5,3534.4,1.24184504]
[1641430728685,5.18439105,3534.5,3534.4,1.84132601]
[1641430729585,3.93018328,3534.5,3534.4,1.24184504]
[1641430729788,3.93018328,3534.5,3534.3,1.24184504]
[1641430729986,3.93018328,3534.5,3534.3,1.47183604]
[1641430730386,3.93018328,3534.5,3534.3,1.24184504]
[1641430730596,1.80865383,3534.4,3534.3,1.24184504]
[1641430732898,1.80865383,3534.4,3534.2,0.59948097]
[1641430733099,0.52972156,3534.4,3534.2,2.15124987]
[1641430733799,0.52972156,3534.4,3534.3,0.362385]
[1641430734000,6.91754789,3535.3,3534.3,12.552385]
[1641430734200,2.36006188,3535.3,3534.8,1.5]
[1641430734401,1.881111,3535.1,3534.9,0.132394]
[1641430734602,1.881111,3535.1,3534.6,1.5]
[1641430734900,1.881111,3535.1,3534.7,1.28103378]
[1641430735100,1.881111,3535.1,3534.7,2.24020493]
[1641430735300,1.881111,3535.1,3534.9,2.00479]
[1641430735499,1.881111,3535.1,3535.0,0.132394]
[1641430735901,1.881111,3535.6,3535.0,0.132394]
[1641430736501,4.91037813,3535.4,3535.0,0.132394]
[1641430737403,2.00479,3535.2,3535.0,0.132394]
[1641430737604,2.00479,3535.2,3535.1,0.229991]
[1641430737805,2.00479,3535.2,3535.1,0.94896784]
[1641430739006,2.00479,3535.2,3535.1,1.17895884]
[1641430739206,2.00479,3535.2,3535.1,0.229991]
[1641430740708,2.00479,3535.2,3535.1,1.17895884]
[1641430741110,2.00479,3535.2,3535.1,0.94896784]
[1641430741312,2.00479,3535.2,3535.1,1.17895884]
[1641430741510,2.00479,3535.2,3535.1,0.94896784]
[1641430741711,2.00479,3535.2,3535.0,0.132394]
[1641430742711,2.00479,3535.2,3535.1,0.229991]
[1641430743010,2.00479,3535.2,3535.0,0.132394]
[1641430743713,2.00479,3535.2,3535.1,1.729991]
[1641430744012,1.881111,3535.7,3535.1,2.68914794]
[1641430744211,1.881111,3535.7,3535.6,1.5]
[1641430744511,1.881111,3535.7,3535.6,1.729991]
[1641430744711,1.881111,3535.8,3535.6,2.82154194]
[1641430744910,1.881111,3535.8,3535.7,1.5]
[1641430745113,1.881111,3535.8,3535.7,2.45915694]
[1641430745310,1.881111,3535.8,3535.7,6.46873694]
[1641430746011,2.68119632,3536.2,3535.8,0.132394]
[1641430746213,2.68119632,3536.2,3535.8,0.362385]
[1641430746413,2.68119632,3536.2,3536.0,1.5]
[1641430746613,2.68119632,3536.2,3536.1,1.54539017]
[1641430746614,0.79919209,3536.2,3536.1,1.54539017]
[1641430746813,1.91704521,3536.5,3536.1,1.54539017]
[1641430747213,1.91704521,3536.5,3536.1,3.04539017]
[1641430747414,1.91704521,3536.5,3536.4,2.00479]
[1641430747615,1.91704521,3536.5,3536.4,2.137184]
[1641430747913,1.91704521,3536.5,3536.4,3.23695232]
[1641430748114,3.14657755,3537.0,3536.4,3.23695232]
[1641430748313,2.68119632,3537.1,3536.4,3.23695232]
[1641430748713,0.08772304,3537.0,3536.4,3.23695232]
[1641430750417,2.68119632,3537.1,3537.0,0.91227696]
[1641430750617,2.00479,3537.2,3537.0,0.91227696]
[1641430751317,2.00479,3537.2,3537.0,1.91227696]
[1641430751518,0.07806935,3537.1,3537.0,1.91227696]
[1641430751716,0.07806935,3537.1,3537.0,2.27466196]
[1641430751917,2.00479,3537.2,3537.0,2.27466196]
[1641430754620,2.39578689,3537.6,3537.0,2.27466196]
[1641430755322,2.00479,3537.7,3537.0,2.27466196]
[1641430755721,0.07804562,3537.6,3537.0,2.27466196]
[1641430755921,0.07804562,3537.6,3537.0,2.04467096]
[1641430756121,0.07804562,3537.6,3537.2,1.0]
[1641430757724,2.50864531,3537.3,3537.2,1.0]
[1641430758225,2.58669093,3537.3,3537.2,1.0]
[1641430759124,2.58669093,3537.3,3537.0,1.91227696]
[1641430759125,18.08669092,3537.3,3535.6,0.94622584]
[1641430759324,12.19,3535.7,3535.0,0.80762919]
[1641430759526,5.50958,3535.1,3534.6,0.80762919]
[1641430759727,1.13203988,3534.6,3534.3,1.87326709]
[1641430759924,12.19,3535.0,3534.3,1.87326709]
[1641430759925,0.07804562,3535.0,3534.3,1.87326709]
[1641430760127,5.42387313,3535.1,3534.3,1.87326709]
[1641430760327,0.07815949,3534.9,3534.3,1.87326709]
[1641430760726,0.07815949,3535.0,3532.9,16.28999]
[1641430760927,1.5,3535.0,3532.9,2.0952]
[1641430761128,1.5,3535.0,3534.9,0.92183633]
[1641430761532,1.5,3535.0,3532.9,1.5]
[1641430761726,1.5,3535.0,3533.2,0.93129027]
[1641430762426,0.06956737,3534.9,3532.9,1.5]
[1641430762628,0.06956737,3534.9,3533.1,1.5]
[1641430762825,32.07406737,3534.9,3533.0,0.95944345]
[1641430763025,32.07406737,3534.9,3532.9,1.5]
[1641430763227,0.06956737,3534.8,3533.1,0.95944057]
[1641430763426,0.06956737,3534.8,3532.8,2.00949313]
[1641430763427,2.00479,3533.3,3533.0,0.95944057]
[1641430763647,2.00479,3533.3,3533.1,0.362385]
[1641430763827,2.00479,3533.3,3533.1,0.132394]
[1641430764426,2.00479,3533.3,3533.2,0.229991]
[1641430765628,2.00479,3533.3,3533.2,1.04444989]
[1641430766128,1.00479,3533.3,3533.2,1.04444989]
[1641430766727,2.00479,3533.6,3533.2,1.04444989]
[1641430766928,2.00479,3533.6,3533.2,1.17684389]
[1641430768833,2.00479,3533.6,3533.4,1.5]
[1641430769031,1.83954714,3535.5,3533.5,13.96625421]
[1641430769234,32.31,3535.4,3534.5,1.5]
[1641430769432,2.00479,3535.4,3534.6,1.5]
[1641430769632,2.00479,3535.4,3534.7,0.132394]
[1641430770033,2.00479,3535.4,3534.7,1.20330735]
[1641430771834,2.00479,3535.7,3535.0,1.41342956]
[1641430772035,2.00479,3535.7,3535.1,0.132394]
[1641430773936,2.00479,3535.7,3535.0,2.00479]
[1641430774137,1.5,3535.1,3533.4,1.56593632]
[1641430774336,1.5,3534.7,3533.4,1.56593632]
[1641430774535,2.63695097,3535.0,3533.4,1.56593632]
[1641430774736,2.63695097,3535.0,3533.4,3.06593632]
[1641430774935,2.63695097,3535.0,3533.5,1.91115436]
[1641430775135,2.63695097,3535.0,3533.8,1.5]
[1641430775536,2.00479,3534.6,3533.8,3.50479]